Workbook

Sheet 一般债券 (hidden)
A1: 附表1：
A2: 2025年开平市新增一般债务限额安排项目情况表
H3: 单位：万元
A4: 序号 | B4: 县（市、区） | C4: 项目名称 | D4: 项目单位 | E4: 项目领域 | F4: 建设状态 | G4: 项目总投资 | H4: 安排金额
C5: 无

Sheet 基金
A1: 附表4
A2: 2025年开平市政府性基金预算收支调整表
A3: 编制单位：开平市财政局 | J3: 单位：万元
A4: 收入 | F4: 支出
A5: 项目 | B5: 年初预算 | C5: 第一次调整预算后金额 | D5: 第二次调整预算后金额 | E5: 相比第一次调整预算增减额 | F5: 项目 | G5: 年初预算 | H5: 第一次调整预算后金额 | I5: 第二次调整预算后金额 | J5: 相比第一次调整预算增减额
A6: 一、政府性基金收入合计 | B6: =SUM(B8:B21) -> 207,605 | C6: =SUM(C8:C21) -> 208,332 | D6: =SUM(D8:D21) -> 208,367 | E6: =SUM(E8:E21) -> 35 | F6: 一、政府性基金支出合计 | G6: =SUM(G8:G22) -> 313,597 | H6: =SUM(H8:H22) -> 391,457 | I6: =SUM(I8:I22) -> 397,692 | J6: =I6-H6 -> 6,235
A7: （一）国土相关收入 | B7: =B9+B10+B8 -> 183,870 | C7: =C9+C10+C8 -> 183,870 | D7: =D9+D10+D8 -> 183,870 | E7: =E9+E10+E8 -> 0 | F7: （一）国土相关支出 | G7: =G8+G9+G10 -> 151,230 | H7: 151,230 | I7: 151,230 | J7: 0
A8: 1、国有土地使用权出让收入 | B8: 161,642 | C8: 161,642 | D8: 161,642 | E8: =D8-C8 -> 0 | F8: 1、国有土地使用权出让收入安排的支出 | G8: 129,037 | H8: 129,037 | I8: 129,037 | J8: 0
A9: 2、国有土地收益基金收入 | B9: 21,195 | C9: 21,195 | D9: 21,195 | E9: 0 | F9: 2、国有土地收益基金安排的支出 | G9: 21,193 | H9: 21,193 | I9: 21,193 | J9: 0
A10: 3、农业土地开发资金收入 | B10: 1,033 | C10: 1,033 | D10: 1,033 | E10: 0 | F10: 3、农业土地开发资金安排的支出 | G10: 1,000 | H10: 1,000 | I10: 1,000 | J10: 0
A11: （二）城市基础设施配套费收入 | B11: 13,000 | C11: 13,000 | D11: 13,000 | E11: 0 | F11: （二）城市基础设施配套费安排的支出 | G11: 12,999 | H11: 12,999 | I11: 12,999 | J11: 0
A12: （三）污水处理费收入 | B12: 7,000 | C12: 7,000 | D12: 7,000 | E12: 0 | F12: （三）污水处理费安排的支出 | G12: 7,000 | H12: 7,000 | I12: 7,000 | J12: 0
A13: （四）彩票公益金收入 | B13: 1,370 | C13: 1,370 | D13: 1,370 | E13: 0 | F13: （四）旅游发展基金支出 | G13: 403 | H13: 403 | I13: 403
A14: （五）彩票发行销售机构业务费收入 | F14: （五）大中型水库库区基金安排的支出 | G14: 27 | H14: 27 | I14: 27 | J14: =I14-H14 -> 0
A15: （六）国家电影事业发展专项资金收入 | F15: （六）大中型水库移民后期扶持基金支出 | G15: 5,134 | H15: 5,134 | I15: 5,134 | J15: 0
A16: （七）旅游发展基金收入 | F16: （七）小型水库移民扶助基金安排的支出 | G16: 131 | H16: 131 | I16: 131 | J16: 0
A17: （八）大中型水库移民后期扶持基金收入 | F17: （八）彩票发行销售机构业务费安排的支出 | G17: 113 | H17: 113 | I17: 113 | J17: 0
A18: （九）小型水库移民扶助基金收入 | F18: （九）彩票公益金安排的支出 | G18: 1,429 | H18: 1,429 | I18: 1,429 | J18: 0
A19: （十）大中型水库库区基金收入 | F19: （十）其他政府性基金及对应专项债务收入安排的支出 | G19: 80,000 | H19: 157,100 | I19: 163,300 | J19: 6,200
A20: （十一）专项债务对应项目专项收入 | B20: 2,365 | C20: 3,092 | D20: 3,127 | E20: =D20-C20 -> 35 | F20: （十一）债务付息支出 | G20: 31,479 | H20: 32,236 | I20: 32,236 | J20: 0
A21: （十二）其他政府性基金收入 | F21: （十二）债务发行费用支出 | G21: 66 | H21: 69 | I21: 104 | J21: 35
F22: （十三） 超长期特别国债安排的支出 | G22: 23,586 | H22: 23,586 | I22: 23,586 | J22: 0
A24: 二、转移性收入 | B24: 3,289 | C24: 3,289 | D24: 3,289 | E24: =D24-C24 -> 0
A25: 三、债务转贷收入 | B25: =B26+B27 -> 81,579 | C25: =C26+C27 -> 158,712 | D25: =D26+D27 -> 164,912 | E25: 6,200 | J25: =I25-H25 -> 0
A26: （一）再融资债券收入 | B26: 1,579 | C26: 1,612 | D26: 1,612 | E26: 0 | F26: 二、调出资金
A27: （二）专项债券收入 | B27: 80,000 | C27: 157,100 | D27: 163,300 | E27: 6,200 | F27: 三、上解支出 | G27: 8,082 | H27: 8,082 | I27: 8,082
A28: 四、上年结余 | B28: 26,257 | C28: 26,257 | D28: 26,257 | E28: 0 | F28: 四、债务还本支出 | G28: 1,754 | H28: 1,754 | I28: 1,754 | J28: =I28-H28 -> 0
A29: 五、调入资金 | B29: 4,803 | C29: 4,803 | D29: 4,803 | E29: 0 | F29: 五、年终结余 | G29: 100 | H29: 100 | I29: 100 | J29: =I29-H29 -> 0
A31: 收入总计 | B31: =B6+B24+B25+B28+B29 -> 323,533 | C31: =C6+C24+C25+C28+C29 -> 401,393 | D31: =D6+D24+D25+D28+D29 -> 407,628 | E31: =E6+E24+E25+E28+E29 -> 6,235 | F31: 支出总计 | G31: =G6+G26+G27+G28+G29 -> 323,533 | H31: 401,393 | I31: 407,628 | J31: 6,235
I33: =I31-D31 -> 0
